Workbook

Sheet Formulario
B1: Cotiza tu plan de EPS Individual 2024
B2: Aportes vigentes para la venta desde el 01/06/2024 al 31/05/2025 | J2: Confirmar | L2: Edad | M2: Parentesco | N2: Plan | O2: Modalidad de Pago
B4: ¿Qué tipo de plan EPS has tenido? | D4: 1 | J4: Plan Regular | K4: 1 | L4: 0 años | M4: Cónyuge | N4: Base | O4: Contado (1 Cuota)
J5: Plan Padres | K5: 2 | L5: 1 año | M5: Conviviente | N5: Plus | O5: Aportes 12 cuotas Débito Automático (TCEA 4%)
B6: Edad del titular: | J6: Plan Jubilados | K6: 3 | L6: 2 años | M6: Hijo | N6: Premium | O6: Aportes 12 cuotas Cuponera (TCEA 17.5%)
J7: Ninguno | K7: 4 | L7: 3 años | M7: Hija | N7: Todos | O7: Todos
B8: ¿Deseas incluir a tu familia? | D8: 2 | K8: 5 | L8: 4 años
K9: 6 | L9: 5 años
D10: Parentesco | F10: =+IFERROR(VLOOKUP(D6,K:L,2,0),"") ->  | J10: =+F10 ->  | K10: 7 | L10: 6 años
C11: Dependiente 1: | E11: Edad: | J11: =IF(D11<>"",IF(OR(D11="Hijo",D11="Hija"),D11&" "&F11,F11),"") ->  | K11: 8 | L11: 7 años | N11: =+IF(D11<>"",1,0) -> 0 | O11: =+IF(F11<>"",1,0) -> 0 | P11: =+IF(O11=N11,0,1) -> 0
C12: Dependiente 2: | E12: Edad: | J12: =IF(D12<>"",IF(OR(D12="Hijo",D12="Hija"),D12&" "&F12,F12),"") ->  | K12: 9 | L12: 8 años | N12: =+IF(D12<>"",1,0) -> 0 | O12: =+IF(F12<>"",1,0) -> 0 | P12: =+IF(O12=N12,0,1) -> 0
C13: Dependiente 3: | E13: Edad: | K13: 10 | L13: 9 años | N13: 0 | O13: 0 | P13: 0
C14: Dependiente 4: | E14: Edad: | K14: 11 | L14: 10 años | N14: 0 | O14: 0 | P14: 0
C15: Dependiente 5: | E15: Edad: | K15: 12 | L15: 11 años | N15: 0 | O15: 0 | P15: 0
C16: Dependiente 6: | E16: Edad: | K16: 13 | L16: 12 años | N16: 0 | O16: 0 | P16: 0
K17: 14 | L17: 13 años | O17: ERRORES | P17: =SUM(P11:P16) -> 0
J18: Incluir | K18: 15 | L18: 14 años
B19: Plan elegido | J19: SI | K19: 16 | L19: 15 años | N19: Base Senior
J20: NO | K20: 17 | L20: 16 años | N20: Plus Senior
C21: Modalidad de Pago | K21: 18 | L21: 17 años | N21: Todos
K22: 19 | L22: 18 años
K23: 20 | L23: 19 años
K24: 21 | L24: 20 años
B25: Resultado de la cotización | K25: 22 | L25: 21 años
K26: 23 | L26: 22 años
C27: Aporte Anual - Pago al contado (Cuponera o Débito Automático) | K27: 24 | L27: 23 años
C28: Edad | D28: Base | E28: Plus | F28: Premium | K28: 25 | L28: 24 años
K29: 26 | L29: 25 años
K30: 27 | L30: 26 años
K31: 28 | L31: 27 años
K32: 29 | L32: 28 años
K33: 30 | L33: 29 años
K34: 31 | L34: 30 años
K35: 32 | L35: 31 años
C36: Total_Pagar | D36: =SUM(D29:D35) -> 0 | E36: =SUM(E29:E35) -> 0 | F36: =SUM(F29:F35) -> 0 | K36: 33 | L36: 32 años
K37: 34 | L37: 33 años
C38: Aportes Mensuales (12 cuotas) - Débito Automático (TCEA 4%) | K38: 35 | L38: 34 años
C39: Edad | D39: Base | E39: Plus | F39: Premium | K39: 36 | L39: 35 años
K40: 37 | L40: 36 años
K41: 38 | L41: 37 años
K42: 39 | L42: 38 años
K43: 40 | L43: 39 años
K44: 41 | L44: 40 años
K45: 42 | L45: 41 años
K46: 43 | L46: 42 años
C47: Total_Pagar | D47: =SUM(D40:D46) -> 0 | E47: =SUM(E40:E46) -> 0 | F47: =SUM(F40:F46) -> 0 | K47: 44 | L47: 43 años
K48: 45 | L48: 44 años
C49: Aportes Mensuales (12 cuotas) - Cuponera (TCEA 17.5%) | K49: 46 | L49: 45 años
C50: Edad | D50: Base | E50: Plus | F50: Premium | K50: 47 | L50: 46 años
K51: 48 | L51: 47 años
K52: 49 | L52: 48 años
K53: 50 | L53: 49 años
K54: 51 | L54: 50 años
K55: 52 | L55: 51 años
K56: 53 | L56: 52 años
K57: 54 | L57: 53 años
C58: Total_Pagar | D58: =SUM(D51:D57) -> 0 | E58: 0 | F58: 0 | K58: 55 | L58: 54 años
K59: 56 | L59: 55 años
K60: 57 | L60: 56 años
K61: 58 | L61: 57 años
K62: 59 | L62: 58 años
K63: 60 | L63: 59 años
K64: 61 | L64: 60 años
K65: 62 | L65: 61 años
K66: 63 | L66: 62 años
K67: 64 | L67: 63 años
K68: 65 | L68: 64 años
K69: 66 | L69: 65 años
K70: 67 | L70: 66 años
K71: 68 | L71: 67 años
K72: 69 | L72: 68 años
K73: 70 | L73: 69 años
K74: 71 | L74: 70 años
K75: 72 | L75: 71 años
K76: 73 | L76: 72 años
K77: 74 | L77: 73 años
K78: 75 | L78: 74 años
K79: 76 | L79: 75 años
K80: 77 | L80: 76 años
K81: 78 | L81: 77 años
K82: 79 | L82: 78 años
K83: 80 | L83: 79 años
K84: 81 | L84: 80 años
K85: 82 | L85: 81 años
K86: 83 | L86: 82 años
K87: 84 | L87: 83 años
K88: 85 | L88: 84 años
K89: 86 | L89: 85 años
K90: 87 | L90: 86 años
K91: 88 | L91: 87 años
K92: 89 | L92: 88 años
K93: 90 | L93: 89 años
K94: 91 | L94: 90 años
K95: 92 | L95: 91 años
K96: 93 | L96: 92 años
K97: 94 | L97: 93 años
K98: 95 | L98: 94 años
K99: 96 | L99: 95 años
K100: 97 | L100: 96 años
K101: 98 | L101: 97 años
K102: 99 | L102: 98 años
K103: 100 | L103: 99 años
K104: 101 | L104: 100 años

Sheet Aportes 2024 (hidden)
B1: APORTES EPS INDIVIDUAL
B2: PASS MACRO | C2: Doge2729 | J2: 0.08511723434 | Q2: 0.09084241725
B3: Aporte Pago al Contado | I3: Aportes 12 cuotas Débito Automático (TCEA 4%) | P3: Aportes 12 cuotas Cuponera (TCEA 17.5%)
B4: Edad | C4: BASE | D4: PLUS | E4: PREMIUM | F4: BASE SENIOR | G4: PLUS SENIOR | I4: Edad | J4: BASE | K4: PLUS | L4: PREMIUM | M4: BASE SENIOR | N4: PLUS SENIOR | P4: Edad | Q4: BASE | R4: PLUS | S4: PREMIUM | T4: BASE SENIOR | U4: PLUS SENIOR
B5: Hijo 0 años | C5: 3117 | D5: 3746 | E5: 4370 | F5: 2649.45 | G5: 3184.1 | I5: Hijo 0 años | J5: =C5*$J$2 -> 265.3104194 | K5: =D5*$J$2 -> 318.8491598 | L5: =E5*$J$2 -> 371.9623141 | M5: =F5*$J$2 -> 225.5138565 | N5: =G5*$J$2 -> 271.0217859 | P5: Hijo 0 años | Q5: =C5*$Q$2 -> 283.1558146 | R5: =D5*$Q$2 -> 340.295695 | S5: =E5*$Q$2 -> 396.9813634 | T5: =F5*$Q$2 -> 240.6824424 | U5: =G5*$Q$2 -> 289.2513408
B6: Hijo 1 año | C6: 3117 | D6: 3746 | E6: 4370 | F6: 2649.45 | G6: 3184.1 | I6: Hijo 1 año | J6: =C6*$J$2 -> 265.3104194 | K6: 318.8491598 | L6: 371.9623141 | M6: 225.5138565 | N6: 271.0217859 | P6: Hijo 1 año | Q6: =C6*$Q$2 -> 283.1558146 | R6: 340.295695 | S6: 396.9813634 | T6: 240.6824424 | U6: 289.2513408
B7: Hijo 2 años | C7: 3117 | D7: 3746 | E7: 4370 | F7: 2649.45 | G7: 3184.1 | I7: Hijo 2 años | J7: 265.3104194 | K7: 318.8491598 | L7: 371.9623141 | M7: 225.5138565 | N7: 271.0217859 | P7: Hijo 2 años | Q7: 283.1558146 | R7: 340.295695 | S7: 396.9813634 | T7: 240.6824424 | U7: 289.2513408
B8: Hijo 3 años | C8: 3117 | D8: 3746 | E8: 4370 | F8: 2649.45 | G8: 3184.1 | I8: Hijo 3 años | J8: 265.3104194 | K8: 318.8491598 | L8: 371.9623141 | M8: 225.5138565 | N8: 271.0217859 | P8: Hijo 3 años | Q8: 283.1558146 | R8: 340.295695 | S8: 396.9813634 | T8: 240.6824424 | U8: 289.2513408
B9: Hijo 4 años | C9: 3117 | D9: 3746 | E9: 4370 | F9: 2649.45 | G9: 3184.1 | I9: Hijo 4 años | J9: 265.3104194 | K9: 318.8491598 | L9: 371.9623141 | M9: 225.5138565 | N9: 271.0217859 | P9: Hijo 4 años | Q9: 283.1558146 | R9: 340.295695 | S9: 396.9813634 | T9: 240.6824424 | U9: 289.2513408
B10: Hijo 5 años | C10: 3117 | D10: 3746 | E10: 4370 | F10: 2649.45 | G10: 3184.1 | I10: Hijo 5 años | J10: 265.3104194 | K10: 318.8491598 | L10: 371.9623141 | M10: 225.5138565 | N10: 271.0217859 | P10: Hijo 5 años | Q10: 283.1558146 | R10: 340.295695 | S10: 396.9813634 | T10: 240.6824424 | U10: 289.2513408
B11: Hijo 6 años | C11: 3117 | D11: 3746 | E11: 4370 | F11: 2649.45 | G11: 3184.1 | I11: Hijo 6 años | J11: 265.3104194 | K11: 318.8491598 | L11: 371.9623141 | M11: 225.5138565 | N11: 271.0217859 | P11: Hijo 6 años | Q11: 283.1558146 | R11: 340.295695 | S11: 396.9813634 | T11: 240.6824424 | U11: 289.2513408
B12: Hijo 7 años | C12: 3117 | D12: 3746 | E12: 4370 | F12: 2649.45 | G12: 3184.1 | I12: Hijo 7 años | J12: 265.3104194 | K12: 318.8491598 | L12: 371.9623141 | M12: 225.5138565 | N12: 271.0217859 | P12: Hijo 7 años | Q12: 283.1558146 | R12: 340.295695 | S12: 396.9813634 | T12: 240.6824424 | U12: 289.2513408
B13: Hijo 8 años | C13: 3117 | D13: 3746 | E13: 4370 | F13: 2649.45 | G13: 3184.1 | I13: Hijo 8 años | J13: 265.3104194 | K13: 318.8491598 | L13: 371.9623141 | M13: 225.5138565 | N13: 271.0217859 | P13: Hijo 8 años | Q13: 283.1558146 | R13: 340.295695 | S13: 396.9813634 | T13: 240.6824424 | U13: 289.2513408
B14: Hijo 9 años | C14: 3117 | D14: 3746 | E14: 4370 | F14: 2649.45 | G14: 3184.1 | I14: Hijo 9 años | J14: 265.3104194 | K14: 318.8491598 | L14: 371.9623141 | M14: 225.5138565 | N14: 271.0217859 | P14: Hijo 9 años | Q14: 283.1558146 | R14: 340.295695 | S14: 396.9813634 | T14: 240.6824424 | U14: 289.2513408
B15: Hijo 10 años | C15: 3117 | D15: 3746 | E15: 4370 | F15: 2649.45 | G15: 3184.1 | I15: Hijo 10 años | J15: 265.3104194 | K15: 318.8491598 | L15: 371.9623141 | M15: 225.5138565 | N15: 271.0217859 | P15: Hijo 10 años | Q15: 283.1558146 | R15: 340.295695 | S15: 396.9813634 | T15: 240.6824424 | U15: 289.2513408
B16: Hijo 11 años | C16: 3117 | D16: 3746 | E16: 4370 | F16: 2649.45 | G16: 3184.1 | I16: Hijo 11 años | J16: 265.3104194 | K16: 318.8491598 | L16: 371.9623141 | M16: 225.5138565 | N16: 271.0217859 | P16: Hijo 11 años | Q16: 283.1558146 | R16: 340.295695 | S16: 396.9813634 | T16: 240.6824424 | U16: 289.2513408
B17: Hijo 12 años | C17: 3117 | D17: 3746 | E17: 4370 | F17: 2649.45 | G17: 3184.1 | I17: Hijo 12 años | J17: 265.3104194 | K17: 318.8491598 | L17: 371.9623141 | M17: 225.5138565 | N17: 271.0217859 | P17: Hijo 12 años | Q17: 283.1558146 | R17: 340.295695 | S17: 396.9813634 | T17: 240.6824424 | U17: 289.2513408
B18: Hijo 13 años | C18: 3117 | D18: 3746 | E18: 4370 | F18: 2649.45 | G18: 3184.1 | I18: Hijo 13 años | J18: 265.3104194 | K18: 318.8491598 | L18: 371.9623141 | M18: 225.5138565 | N18: 271.0217859 | P18: Hijo 13 años | Q18: 283.1558146 | R18: 340.295695 | S18: 396.9813634 | T18: 240.6824424 | U18: 289.2513408
B19: Hijo 14 años | C19: 3117 | D19: 3746 | E19: 4370 | F19: 2649.45 | G19: 3184.1 | I19: Hijo 14 años | J19: 265.3104194 | K19: 318.8491598 | L19: 371.9623141 | M19: 225.5138565 | N19: 271.0217859 | P19: Hijo 14 años | Q19: 283.1558146 | R19: 340.295695 | S19: 396.9813634 | T19: 240.6824424 | U19: 289.2513408
B20: Hijo 15 años | C20: 3117 | D20: 3746 | E20: 4370 | F20: 2649.45 | G20: 3184.1 | I20: Hijo 15 años | J20: 265.3104194 | K20: 318.8491598 | L20: 371.9623141 | M20: 225.5138565 | N20: 271.0217859 | P20: Hijo 15 años | Q20: 283.1558146 | R20: 340.295695 | S20: 396.9813634 | T20: 240.6824424 | U20: 289.2513408
B21: Hijo 16 años | C21: 3117 | D21: 3746 | E21: 4370 | F21: 2649.45 | G21: 3184.1 | I21: Hijo 16 años | J21: 265.3104194 | K21: 318.8491598 | L21: 371.9623141 | M21: 225.5138565 | N21: 271.0217859 | P21: Hijo 16 años | Q21: 283.1558146 | R21: 340.295695 | S21: 396.9813634 | T21: 240.6824424 | U21: 289.2513408
B22: Hijo 17 años | C22: 3117 | D22: 3746 | E22: 4370 | F22: 2649.45 | G22: 3184.1 | I22: Hijo 17 años | J22: 265.3104194 | K22: 318.8491598 | L22: 371.9623141 | M22: 225.5138565 | N22: 271.0217859 | P22: Hijo 17 años | Q22: 283.1558146 | R22: 340.295695 | S22: 396.9813634 | T22: 240.6824424 | U22: 289.2513408
B23: Hijo 18 años | C23: 3232 | D23: 3746 | E23: 4387 | F23: 2747.2 | G23: 3184.1 | I23: Hijo 18 años | J23: 275.0989014 | K23: 318.8491598 | L23: 373.409307 | M23: 233.8340662 | N23: 271.0217859 | P23: Hijo 18 años | Q23: 293.6026926 | R23: 340.295695 | S23: 398.5256845 | T23: 249.5622887 | U23: 289.2513408
B24: Hijo 19 años | C24: 3232 | D24: 3746 | E24: 4387 | F24: 2747.2 | G24: 3184.1 | I24: Hijo 19 años | J24: 275.0989014 | K24: 318.8491598 | L24: 373.409307 | M24: 233.8340662 | N24: 271.0217859 | P24: Hijo 19 años | Q24: 293.6026926 | R24: 340.295695 | S24: 398.5256845 | T24: 249.5622887 | U24: 289.2513408
B25: Hijo 20 años | C25: 3232 | D25: 3746 | E25: 4387 | F25: 2747.2 | G25: 3184.1 | I25: Hijo 20 años | J25: 275.0989014 | K25: 318.8491598 | L25: 373.409307 | M25: 233.8340662 | N25: 271.0217859 | P25: Hijo 20 años | Q25: 293.6026926 | R25: 340.295695 | S25: 398.5256845 | T25: 249.5622887 | U25: 289.2513408
B26: Hijo 21 años | C26: 3232 | D26: 3746 | E26: 4387 | F26: 2747.2 | G26: 3184.1 | I26: Hijo 21 años | J26: 275.0989014 | K26: 318.8491598 | L26: 373.409307 | M26: 233.8340662 | N26: 271.0217859 | P26: Hijo 21 años | Q26: 293.6026926 | R26: 340.295695 | S26: 398.5256845 | T26: 249.5622887 | U26: 289.2513408
B27: Hijo 22 años | C27: 3232 | D27: 3746 | E27: 4387 | F27: 2747.2 | G27: 3184.1 | I27: Hijo 22 años | J27: 275.0989014 | K27: 318.8491598 | L27: 373.409307 | M27: 233.8340662 | N27: 271.0217859 | P27: Hijo 22 años | Q27: 293.6026926 | R27: 340.295695 | S27: 398.5256845 | T27: 249.5622887 | U27: 289.2513408
B28: Hijo 23 años | C28: 3232 | D28: 3746 | E28: 4387 | F28: 2747.2 | G28: 3184.1 | I28: Hijo 23 años | J28: 275.0989014 | K28: 318.8491598 | L28: 373.409307 | M28: 233.8340662 | N28: 271.0217859 | P28: Hijo 23 años | Q28: 293.6026926 | R28: 340.295695 | S28: 398.5256845 | T28: 249.5622887 | U28: 289.2513408
B29: Hijo 24 años | C29: 3232 | D29: 3746 | E29: 4387 | F29: 2747.2 | G29: 3184.1 | I29: Hijo 24 años | J29: 275.0989014 | K29: 318.8491598 | L29: 373.409307 | M29: 233.8340662 | N29: 271.0217859 | P29: Hijo 24 años | Q29: 293.6026926 | R29: 340.295695 | S29: 398.5256845 | T29: 249.5622887 | U29: 289.2513408
B30: Hijo 25 años | C30: 3232 | D30: 3746 | E30: 4387 | F30: 2747.2 | G30: 3184.1 | I30: Hijo 25 años | J30: 275.0989014 | K30: 318.8491598 | L30: 373.409307 | M30: 233.8340662 | N30: 271.0217859 | P30: Hijo 25 años | Q30: 293.6026926 | R30: 340.295695 | S30: 398.5256845 | T30: 249.5622887 | U30: 289.2513408
B31: Hijo 26 años | C31: 3358 | D31: 4132 | E31: 4862 | F31: 2854.3 | G31: 3512.2 | I31: Hijo 26 años | J31: 285.8236729 | K31: 351.7044123 | L31: 413.8399933 | M31: 242.950122 | N31: 298.9487504 | P31: Hijo 26 años | Q31: 305.0488371 | R31: 375.3608681 | S31: 441.6758327 | T31: 259.2915116 | U31: 319.0567379
B32: Hijo 27 años | C32: 3450 | D32: 4416 | E32: 5318 | F32: 2932.5 | G32: 3753.6 | I32: Hijo 27 años | J32: 293.6544585 | K32: 375.8777068 | L32: 452.6534522 | M32: 249.6062897 | N32: 319.4960508 | P32: Hijo 27 años | Q32: 313.4063395 | R32: 401.1601146 | S32: 483.0999749 | T32: 266.3953886 | U32: 340.9860974
B33: Hijo 28 años | C33: 3542 | D33: 4553 | E33: 5583 | F33: 3010.7 | G33: 3870.05 | I33: Hijo 28 años | J33: 301.485244 | K33: 387.5387679 | L33: 475.2095193 | M33: 256.2624574 | N33: 329.4079527 | P33: Hijo 28 años | Q33: 321.7638419 | R33: 413.6055257 | S33: 507.1732155 | T33: 273.4992656 | U33: 351.5646969
B34: Hijo 29 años | C34: 3634 | D34: 4721 | E34: 5899 | F34: 3088.9 | G34: 4012.85 | I34: Hijo 29 años | J34: 309.3160296 | K34: 401.8384633 | L34: 502.1065654 | M34: 262.9186251 | N34: 341.5626938 | P34: Hijo 29 años | Q34: 330.1213443 | R34: 428.8670518 | S34: 535.8794194 | T34: 280.6031426 | U34: 364.5369941
B35: Hijo 30 años | C35: 3726 | D35: 4748 | E35: 6251 | F35: 3167.1 | G35: 4035.8 | I35: Hijo 30 años | J35: 317.1468151 | K35: 404.1366286 | L35: 532.0678318 | M35: 269.5747929 | N35: 343.5161343 | P35: Hijo 30 años | Q35: 338.4788467 | R35: 431.3197971 | S35: 567.8559502 | T35: 287.7070197 | U35: 366.6218275
B36: Hijo 31 años | C36: 3818 | D36: 4811 | E36: 6466 | F36: 3245.3 | G36: 4089.35 | I36: Hijo 31 años | J36: 324.9776007 | K36: 409.4990144 | L36: 550.3680372 | M36: 276.2309606 | N36: 348.0741622 | P36: Hijo 31 años | Q36: 346.8363491 | R36: 437.0428694 | S36: 587.3870699 | T36: 294.8108967 | U36: 371.486439
B37: Hijo 32 años | C37: 3910 | D37: 4835 | E37: 6729 | F37: 3323.5 | G37: 4109.75 | I37: Hijo 32 años | J37: 332.8083863 | K37: 411.541828 | L37: 572.7538699 | M37: 282.8871283 | N37: 349.8105538 | P37: Hijo 32 años | Q37: 355.1938515 | R37: 439.2230874 | S37: 611.2786257 | T37: 301.9147737 | U37: 373.3396243
B38: Hijo 33 años | C38: 4002 | D38: 4885 | E38: 6893 | F38: 3401.7 | G38: 4152.25 | I38: Hijo 33 años | J38: 340.6391718 | K38: 415.7976897 | L38: 586.7130963 | M38: 289.543296 | N38: 353.4280363 | P38: Hijo 33 años | Q38: 363.5513538 | R38: 443.7652083 | S38: 626.1767821 | T38: 309.0186508 | U38: 377.200427
B39: Hijo 34 años | C39: 4094 | D39: 4911 | E39: 7033 | F39: 3479.9 | G39: 4174.35 | I39: Hijo 34 años | J39: 348.4699574 | K39: 418.0107378 | L39: 598.6295091 | M39: 296.1994638 | N39: 355.3091272 | P39: Hijo 34 años | Q39: 371.9088562 | R39: 446.1271111 | S39: 638.8947205 | T39: 316.1225278 | U39: 379.2080445
B40: Hijo 35 años | C40: 4186 | D40: 4975 | E40: 7147 | F40: 3558.1 | G40: 4228.75 | I40: Hijo 35 años | J40: 356.3007429 | K40: 423.4582408 | L40: 608.3328738 | M40: 302.8556315 | N40: 359.9395047 | P40: Hijo 35 años | Q40: 380.2663586 | R40: 451.9410258 | S40: 649.2507561 | T40: 323.2264048 | U40: 384.149872
B41: Hijo 36 años | C41: 4278 | D41: 4986 | E41: 7236 | F41: 3636.3 | G41: 4238.1 | I41: Hijo 36 años | J41: 364.1315285 | K41: 424.3945304 | L41: 615.9083077 | M41: 309.5117992 | N41: 360.7353508 | P41: Hijo 36 años | Q41: 388.623861 | R41: 452.9402924 | S41: 657.3357312 | T41: 330.3302819 | U41: 384.9992486
B42: Hijo 37 años | C42: 4370 | D42: 4996 | E42: 7326 | F42: 3714.5 | G42: 4246.6 | I42: Hijo 37 años | J42: 371.9623141 | K42: 425.2457027 | L42: 623.5688588 | M42: 316.1679669 | N42: 361.4588473 | P42: Hijo 37 años | Q42: 396.9813634 | R42: 453.8487166 | S42: 665.5115488 | T42: 337.4341589 | U42: 385.7714091
B43: Hijo 38 años | C43: 4485 | D43: 5006 | E43: 7476 | F43: 3812.25 | G43: 4255.1 | I43: Hijo 38 años | J43: 381.750796 | K43: 426.0968751 | L43: 636.3364439 | M43: 324.4881766 | N43: 362.1823438 | P43: Hijo 38 años | Q43: 407.4282414 | R43: 454.7571408 | S43: 679.1379114 | T43: 346.3140052 | U43: 386.5435696
B44: Hijo 39 años | C44: 4600 | D44: 5017 | E44: 7638 | F44: 3910 | G44: 4264.45 | I44: Hijo 39 años | J44: 391.539278 | K44: 427.0331647 | L44: 650.1254359 | M44: 332.8083863 | N44: 362.97819 | P44: Hijo 39 años | Q44: 417.8751194 | R44: 455.7564074 | S44: 693.854383 | T44: 355.1938515 | U44: 387.3929462
B45: Hijo 40 años | C45: 4715 | D45: 5066 | E45: 7973 | F45: 4007.75 | G45: 4306.1 | I45: Hijo 40 años | J45: 401.3277599 | K45: 431.2039092 | L45: 678.6397094 | M45: 341.1285959 | N45: 366.5233228 | P45: Hijo 40 años | Q45: 428.3219973 | R45: 460.2076858 | S45: 724.2865927 | T45: 364.0736977 | U45: 391.1765329
B46: Hijo 41 años | C46: 4853 | D46: 5480 | E46: 8269 | F46: 4125.05 | G46: 4658 | I46: Hijo 41 años | J46: 413.0739382 | K46: 466.4424442 | L46: 703.8344107 | M46: 351.1128475 | N46: 396.4760775 | P46: Hijo 41 años | Q46: 440.8582509 | R46: 497.8164465 | S46: 751.1759483 | T46: 374.7295133 | U46: 423.1439796
B47: Hijo 42 años | C47: 4991 | D47: 5882 | E47: 8675 | F47: 4242.35 | G47: 4999.7 | I47: Hijo 42 años | J47: 424.8201166 | K47: 500.6595724 | L47: 738.3920079 | M47: 361.0970991 | N47: 425.5606365 | P47: Hijo 42 años | Q47: 453.3945045 | R47: 534.3350983 | S47: 788.0579697 | T47: 385.3853288 | U47: 454.1848335
B48: Hijo 43 años | C48: 5129 | D48: 6403 | E48: 8982 | F48: 4359.65 | G48: 5442.55 | I48: Hijo 43 años | J48: 436.5662949 | K48: 545.0056515 | L48: 764.5229988 | M48: 371.0813507 | N48: 463.2548037 | P48: Hijo 43 años | Q48: 465.9307581 | R48: 581.6639977 | S48: 815.9465918 | T48: 396.0411444 | U48: 494.414398
B49: Hijo 44 años | C49: 5290 | D49: 6631 | E49: 9313 | F49: 4496.5 | G49: 5636.35 | I49: Hijo 44 años | J49: 450.2701696 | K49: 564.4123809 | L49: 792.6968034 | M49: 382.7296442 | N49: 479.7505238 | P49: Hijo 44 años | Q49: 480.5563873 | R49: 602.3760688 | S49: 846.0154319 | T49: 408.4729292 | U49: 512.0196585
B50: Hijo 45 años | C50: 5497 | D50: 6883 | E50: 9546 | F50: 4672.45 | G50: 5850.55 | I50: Hijo 45 años | J50: 467.8894372 | K50: 585.8619239 | L50: 812.529119 | M50: 397.7060216 | N50: 497.9826354 | P50: Hijo 45 años | Q50: 499.3607676 | R50: 625.2683579 | S50: 867.1817151 | T50: 424.4566525 | U50: 531.4781043
B51: Hijo 46 años | C51: 5727 | D51: 7389 | E51: 10059 | F51: 4867.95 | G51: 6280.65 | I51: Hijo 46 años | J51: 487.466401 | K51: 628.9312445 | L51: 856.1942602 | M51: 414.3464409 | N51: 534.5915578 | P51: Hijo 46 años | Q51: 520.2545236 | R51: 671.2346211 | S51: 913.7838751 | T51: 442.2163451 | U51: 570.5494279
B52: Hijo 47 años | C52: 5957 | D52: 7697 | E52: 10423 | F52: 5063.45 | G52: 6542.45 | I52: Hijo 47 años | J52: 507.0433649 | K52: 655.1473527 | L52: 887.1769335 | M52: 430.9868602 | N52: 556.8752498 | P52: Hijo 47 años | Q52: 541.1482796 | R52: 699.2140856 | S52: 946.850515 | T52: 459.9760376 | U52: 594.3319727
B53: Hijo 48 años | C53: 6199 | D53: 7946 | E53: 10691 | F53: 5269.15 | G53: 6754.1 | I53: Hijo 48 años | J53: 527.6417357 | K53: 676.341544 | L53: 909.9883523 | M53: 448.4954753 | N53: 574.8903124 | P53: Hijo 48 años | Q53: 563.1321445 | R53: 721.8338475 | S53: 971.1962828 | T53: 478.6623229 | U53: 613.5587704
B54: Hijo 49 años | C54: 6475 | D54: 8207 | E54: 11091 | F54: 5503.75 | G54: 6975.95 | I54: Hijo 49 años | J54: 551.1340923 | K54: 698.5571422 | L54: 944.035246 | M54: 468.4639785 | N54: 593.7735709 | P54: Hijo 49 años | Q54: 588.2046517 | R54: 745.5437184 | S54: 1007.53325 | T54: 499.9739539 | U54: 633.7121606
B55: Hijo 50 años | C55: 6785 | D55: 8512 | E55: 11576 | F55: 5767.25 | G55: 7235.2 | I55: Hijo 50 años | J55: 577.520435 | K55: 724.5178987 | L55: 985.3171047 | M55: 490.8923697 | N55: 615.8402139 | P55: Hijo 50 años | Q55: 616.3658011 | R55: 773.2506556 | S55: 1051.591822 | T55: 523.9109309 | U55: 657.2630573
B56: Hijo 51 años | C56: 7107 | D56: 9081 | E56: 12441 | F56: 6040.95 | G56: 7718.85 | I56: Hijo 51 años | J56: 604.9281844 | K56: 772.949605 | L56: 1058.943512 | M56: 514.1889568 | N56: 657.0071643 | P56: Hijo 51 años | Q56: 645.6170594 | R56: 824.9399911 | S56: 1130.170513 | T56: 548.7745005 | U56: 701.1989924
B57: Hijo 52 años | C57: 7475 | D57: 9493 | E57: 13369 | F57: 6353.75 | G57: 8069.05 | I57: Hijo 52 años | J57: 636.2513267 | K57: 808.0179056 | L57: 1137.932306 | M57: 540.8136277 | N57: 686.8152197 | P57: Hijo 52 años | Q57: 679.047069 | R57: 862.367067 | S57: 1214.472276 | T57: 577.1900086 | U57: 733.0120069
B58: Hijo 53 años | C58: 7878 | D58: 9809 | E58: 14136 | F58: 6696.3 | G58: 8337.65 | I58: Hijo 53 años | J58: 670.5535721 | K58: 834.9149516 | L58: 1203.217225 | M58: 569.9705363 | N58: 709.6777089 | P58: Hijo 53 años | Q58: 715.6565631 | R58: 891.0732708 | S58: 1284.14841 | T58: 608.3080786 | U58: 757.4122802
B59: Hijo 54 años | C59: 8303 | D59: 10231 | E59: 14829 | F59: 7057.55 | G59: 8696.35 | I59: Hijo 54 años | J59: 706.7283967 | K59: 870.8344245 | L59: 1262.203468 | M59: 600.7191372 | N59: 740.2092608 | P59: Hijo 54 años | Q59: 754.2645904 | R59: 929.4087709 | S59: 1347.102205 | T59: 641.1249019 | U59: 789.9974553
B60: Hijo 55 años | C60: 8786 | D60: 10686 | E60: 15458 | F60: 7468.1 | G60: 9083.1 | I60: Hijo 55 años | J60: 747.8400209 | K60: 909.5627661 | L60: 1315.742208 | M60: 635.6640178 | N60: 773.1283512 | P60: Hijo 55 años | Q60: 798.141478 | R60: 970.7420708 | S60: 1404.242086 | T60: 678.4202563 | U60: 825.1307601
B61: Hijo 56 años | C61: 9315 | D61: 11142 | E61: 15953 | F61: 7917.75 | G61: 9470.7 | I61: Hijo 56 años | J61: 792.8670379 | K61: 948.376225 | L61: 1357.875239 | M61: 673.9369822 | N61: 806.1197912 | P61: Hijo 56 años | Q61: 846.1971167 | R61: 1012.166213 | S61: 1449.209082 | T61: 719.2675492 | U61: 860.3412811
B62: Hijo 57 años | C62: 9890 | D62: 11596 | E62: 16884 | F62: 8406.5 | G62: 9856.6 | I62: Hijo 57 años | J62: 841.8094476 | K62: 987.0194494 | L62: 1437.119385 | M62: 715.5380305 | N62: 838.966532 | P62: Hijo 57 años | Q62: 898.4315066 | R62: 1053.40867 | S62: 1533.783373 | T62: 763.6667806 | U62: 895.3973699
B63: Hijo 58 años | C63: 10557 | D63: 12131 | E63: 17826 | F63: 8973.45 | G63: 10311.35 | I63: Hijo 58 años | J63: 898.5826429 | K63: 1032.55717 | L63: 1517.299819 | M63: 763.7952465 | N63: 877.6735943 | P63: Hijo 58 años | Q63: 959.0233989 | R63: 1102.009364 | S63: 1619.35693 | T63: 815.1698891 | U63: 936.7079591
B64: Hijo 59 años | C64: 11213 | D64: 13041 | E64: 18814 | F64: 9531.05 | G64: 11084.85 | I64: Hijo 59 años | J64: 954.4195486 | K64: 1110.013853 | L64: 1601.395647 | M64: 811.2566163 | N64: 943.511775 | P64: Hijo 59 años | Q64: 1018.616025 | R64: 1184.675963 | S64: 1709.109238 | T64: 865.8236209 | U64: 1006.974569
B65: Hijo 60 años | C65: 11868 | D65: 14277 | E65: 19995 | F65: 10087.8 | G65: 12135.45 | I65: Hijo 60 años | J65: 1010.171337 | K65: 1215.218755 | L65: 1701.919101 | M65: 858.6456365 | N65: 1032.935941 | P65: Hijo 60 años | Q65: 1078.117808 | R65: 1296.957191 | S65: 1816.394133 | T65: 916.4001368 | U65: 1102.413612
B66: Hijo 61 años | C66: 12535 | D66: 15124 | E66: 20991 | F66: 10654.75 | G66: 12855.4 | I66: Hijo 61 años | J66: 1066.944532 | K66: 1287.313052 | L66: 1786.695866 | M66: 906.9028526 | N66: 1094.216094 | P66: Hijo 61 años | Q66: 1138.7097 | R66: 1373.900719 | S66: 1906.873181 | T66: 967.9032452 | U66: 1167.815611
B67: Hijo 62 años | C67: 13455 | D67: 16649 | E67: 22192 | F67: 11436.75 | G67: 14151.65 | I67: Hijo 62 años | J67: 1145.252388 | K67: 1417.116834 | L67: 1888.921664 | M67: 973.4645298 | N67: 1204.549309 | P67: Hijo 62 años | Q67: 1222.284724 | R67: 1512.435405 | S67: 2015.974924 | T67: 1038.942016 | U67: 1285.570094
B68: Hijo 63 años | C68: 14536 | D68: 17911 | E68: 23704 | F68: 12355.6 | G68: 15224.35 | I68: Hijo 63 años | J68: 1237.264118 | K68: 1524.534784 | L68: 2017.618923 | M68: 1051.674501 | N68: 1295.854567 | P68: Hijo 63 años | Q68: 1320.485377 | R68: 1627.078535 | S68: 2153.328659 | T68: 1122.412571 | U68: 1383.016755
B69: Hijo 64 años | C69: 15698 | D69: 19169 | E69: 25588 | F69: 13343.3 | G69: 16293.65 | I69: Hijo 64 años | J69: 1336.170345 | K69: =D69*$J$2 -> 1631.612265 | L69: =E69*$J$2 -> 2177.979792 | M69: =F69*$J$2 -> 1135.744793 | N69: =G69*$J$2 -> 1386.870425 | P69: Hijo 64 años | Q69: 1426.044266 | R69: =D69*$Q$2 -> 1741.358296 | S69: =E69*$Q$2 -> 2324.475773 | T69: =F69*$Q$2 -> 1212.137626 | U69: =G69*$Q$2 -> 1480.154552
B70: Hijo 65 años | C70: 17078 | D70: 20798 | E70: 27348 | F70: 14516.3 | G70: 17678.3 | I70: Hijo 65 años | J70: =C70*$J$2 -> 1453.632128 | K70: 1770.26824 | L70: 2327.786125 | M70: 1235.587309 | N70: 1504.728004 | P70: Hijo 65 años | Q70: =C70*$Q$2 -> 1551.406802 | R70: 1889.340594 | S70: 2484.358427 | T70: 1318.695782 | U70: 1605.939505
B71: Hijo 66 años | C71: 20040 | D71: 22900 | E71: 31970 | F71: 17034 | G71: 19465 | I71: Hijo 66 años | J71: 1705.749376 | K71: 1949.184666 | L71: 2721.197982 | M71: 1449.88697 | N71: 1656.806966 | P71: Hijo 66 años | Q71: 1820.482042 | R71: 2080.291355 | S71: 2904.23208 | T71: 1547.409735 | U71: 1768.247652
B72: Hijo 67 años | C72: 21700 | D72: 25210 | E72: 33900 | F72: 18445 | G72: 21428.5 | I72: Hijo 67 años | J72: 1847.043985 | K72: 2145.805478 | L72: 2885.474244 | M72: 1569.987387 | N72: 1823.934656 | P72: Hijo 67 años | Q72: 1971.280454 | R72: 2290.137339 | S72: 3079.557945 | T72: 1675.588386 | U72: 1946.616738
B73: Hijo 68 años | C73: 23500 | D73: 27660 | E73: 36080 | F73: 19975 | G73: 23511 | I73: Hijo 68 años | J73: 2000.255007 | K73: 2354.342702 | L73: 3071.029815 | M73: 1700.216756 | N73: 2001.191297 | P73: Hijo 68 años | Q73: 2134.796805 | R73: 2512.701261 | S73: 3277.594414 | T73: 1814.577285 | U73: 2135.796072
B74: Hijo 69 años | C74: 25150 | D74: 29700 | E74: 39420 | F74: 21377.5 | G74: 25245 | I74: Hijo 69 años | J74: 2140.698444 | K74: 2527.98186 | L74: 3355.321378 | M74: 1819.593677 | N74: 2148.784581 | P74: Hijo 69 años | Q74: 2284.686794 | R74: 2698.019792 | S74: 3581.008088 | T74: 1941.983775 | U74: 2293.316824
B75: Hijo 70 años | C75: 26940 | D75: 31520 | E75: 42370 | F75: 22899 | G75: 26792 | I75: Hijo 70 años | J75: 2293.058293 | K75: 2682.895226 | L75: 3606.417219 | M75: 1949.099549 | N75: 2280.460942 | P75: Hijo 70 años | Q75: 2447.294721 | R75: 2863.352992 | S75: 3848.993219 | T75: 2080.200513 | U75: 2433.850043
B76: Hijo 71 años | C76: 28860 | D76: 34220 | E76: 45970 | F76: 24531 | G76: 29087 | I76: Hijo 71 años | J76: 2456.483383 | K76: 2912.711759 | L76: 3912.839262 | M76: 2088.010876 | N76: 2475.804995 | P76: Hijo 71 años | Q76: 2621.712162 | R76: 3108.627518 | S76: 4176.025921 | T76: 2228.455338 | U76: 2642.333391
B77: Hijo 72 años | C77: 28860 | D77: 34220 | E77: 45970 | F77: 24531 | G77: 29087 | I77: Hijo 72 años | J77: 2456.483383 | K77: 2912.711759 | L77: 3912.839262 | M77: 2088.010876 | N77: 2475.804995 | P77: Hijo 72 años | Q77: 2621.712162 | R77: 3108.627518 | S77: 4176.025921 | T77: 2228.455338 | U77: 2642.333391
B78: Hijo 73 años | C78: 28860 | D78: 34220 | E78: 45970 | F78: 24531 | G78: 29087 | I78: Hijo 73 años | J78: 2456.483383 | K78: 2912.711759 | L78: 3912.839262 | M78: 2088.010876 | N78: 2475.804995 | P78: Hijo 73 años | Q78: 2621.712162 | R78: 3108.627518 | S78: 4176.025921 | T78: 2228.455338 | U78: 2642.333391
B79: Hijo 74 años | C79: 28860 | D79: 34220 | E79: 45970 | F79: 24531 | G79: 29087 | I79: Hijo 74 años | J79: 2456.483383 | K79: 2912.711759 | L79: 3912.839262 | M79: 2088.010876 | N79: 2475.804995 | P79: Hijo 74 años | Q79: 2621.712162 | R79: 3108.627518 | S79: 4176.025921 | T79: 2228.455338 | U79: 2642.333391
B80: Hijo 75 años | C80: 28860 | D80: 34220 | E80: 45970 | F80: 24531 | G80: 29087 | I80: Hijo 75 años | J80: 2456.483383 | K80: 2912.711759 | L80: 3912.839262 | M80: 2088.010876 | N80: 2475.804995 | P80: Hijo 75 años | Q80: 2621.712162 | R80: 3108.627518 | S80: 4176.025921 | T80: 2228.455338 | U80: 2642.333391
B81: Hijo 76 años | C81: 30520 | D81: 37750 | E81: 52390 | F81: 25942 | G81: 32087.5 | I81: Hijo 76 años | J81: 2597.777992 | K81: 3213.175596 | L81: 4459.291907 | M81: 2208.111293 | N81: 2731.199257 | P81: Hijo 76 años | Q81: 2772.510575 | R81: 3429.301251 | S81: 4759.23424 | T81: 2356.633988 | U81: 2914.906064
B82: Hijo 77 años | C82: 30520 | D82: 37750 | E82: 52390 | F82: 25942 | G82: 32087.5 | I82: Hijo 77 años | J82: 2597.777992 | K82: 3213.175596 | L82: 4459.291907 | M82: 2208.111293 | N82: 2731.199257 | P82: Hijo 77 años | Q82: 2772.510575 | R82: 3429.301251 | S82: 4759.23424 | T82: 2356.633988 | U82: 2914.906064
B83: Hijo 78 años | C83: 30520 | D83: 37750 | E83: 52390 | F83: 25942 | G83: 32087.5 | I83: Hijo 78 años | J83: 2597.777992 | K83: 3213.175596 | L83: 4459.291907 | M83: 2208.111293 | N83: 2731.199257 | P83: Hijo 78 años | Q83: 2772.510575 | R83: 3429.301251 | S83: 4759.23424 | T83: 2356.633988 | U83: 2914.906064
B84: Hijo 79 años | C84: 30520 | D84: 37750 | E84: 52390 | F84: 25942 | G84: 32087.5 | I84: Hijo 79 años | J84: 2597.777992 | K84: 3213.175596 | L84: 4459.291907 | M84: 2208.111293 | N84: 2731.199257 | P84: Hijo 79 años | Q84: 2772.510575 | R84: 3429.301251 | S84: 4759.23424 | T84: 2356.633988 | U84: 2914.906064
B85: Hijo 80 años | C85: 30520 | D85: 37750 | E85: 52390 | F85: 25942 | G85: 32087.5 | I85: Hijo 80 años | J85: 2597.777992 | K85: 3213.175596 | L85: 4459.291907 | M85: 2208.111293 | N85: 2731.199257 | P85: Hijo 80 años | Q85: 2772.510575 | R85: 3429.301251 | S85: 4759.23424 | T85: 2356.633988 | U85: 2914.906064
B86: Hijo 81 años | C86: 32300 | D86: 41810 | E86: 57780 | F86: 27455 | G86: 35538.5 | I86: Hijo 81 años | J86: 2749.286669 | K86: 3558.751568 | L86: 4918.0738 | M86: 2336.893669 | N86: 3024.938832 | P86: Hijo 81 años | Q86: 2934.210077 | R86: 3798.121465 | S86: 5248.874869 | T86: 2494.078566 | U86: 3228.403245
B87: Hijo 82 años | C87: 32300 | D87: 41810 | E87: 57780 | F87: 27455 | G87: 35538.5 | I87: Hijo 82 años | J87: =C87*$J$2 -> 2749.286669 | K87: =D87*$J$2 -> 3558.751568 | L87: =E87*$J$2 -> 4918.0738 | M87: =F87*$J$2 -> 2336.893669 | N87: =G87*$J$2 -> 3024.938832 | P87: Hijo 82 años | Q87: =C87*$Q$2 -> 2934.210077 | R87: =D87*$Q$2 -> 3798.121465 | S87: =E87*$Q$2 -> 5248.874869 | T87: =F87*$Q$2 -> 2494.078566 | U87: =G87*$Q$2 -> 3228.403245
B88: Hijo 83 años | C88: 32300 | D88: 41810 | E88: 57780 | F88: 27455 | G88: 35538.5 | I88: Hijo 83 años | J88: 2749.286669 | K88: 3558.751568 | L88: 4918.0738 | M88: 2336.893669 | N88: 3024.938832 | P88: Hijo 83 años | Q88: 2934.210077 | R88: 3798.121465 | S88: 5248.874869 | T88: 2494.078566 | U88: 3228.403245
B89: Hijo 84 años | C89: 32300 | D89: 41810 | E89: 57780 | F89: 27455 | G89: 35538.5 | I89: Hijo 84 años | J89: 2749.286669 | K89: 3558.751568 | L89: 4918.0738 | M89: 2336.893669 | N89: 3024.938832 | P89: Hijo 84 años | Q89: 2934.210077 | R89: 3798.121465 | S89: 5248.874869 | T89: 2494.078566 | U89: 3228.403245
B90: Hijo 85 años | C90: 32300 | D90: 41810 | E90: 57780 | F90: 27455 | G90: 35538.5 | I90: Hijo 85 años | J90: 2749.286669 | K90: 3558.751568 | L90: 4918.0738 | M90: 2336.893669 | N90: 3024.938832 | P90: Hijo 85 años | Q90: 2934.210077 | R90: 3798.121465 | S90: 5248.874869 | T90: 2494.078566 | U90: 3228.403245
B91: Hijo 86 años | C91: 32300 | D91: 41810 | E91: 57780 | F91: 27455 | G91: 35538.5 | I91: Hijo 86 años | J91: 2749.286669 | K91: 3558.751568 | L91: 4918.0738 | M91: 2336.893669 | N91: 3024.938832 | P91: Hijo 86 años | Q91: 2934.210077 | R91: 3798.121465 | S91: 5248.874869 | T91: 2494.078566 | U91: 3228.403245
B92: Hijo 87 años | C92: 32300 | D92: 41810 | E92: 57780 | F92: 27455 | G92: 35538.5 | I92: Hijo 87 años | J92: 2749.286669 | K92: 3558.751568 | L92: 4918.0738 | M92: 2336.893669 | N92: 3024.938832 | P92: Hijo 87 años | Q92: 2934.210077 | R92: 3798.121465 | S92: 5248.874869 | T92: 2494.078566 | U92: 3228.403245
B93: Hijo 88 años | C93: 32300 | D93: 41810 | E93: 57780 | F93: 27455 | G93: 35538.5 | I93: Hijo 88 años | J93: 2749.286669 | K93: 3558.751568 | L93: 4918.0738 | M93: 2336.893669 | N93: 3024.938832 | P93: Hijo 88 años | Q93: 2934.210077 | R93: 3798.121465 | S93: 5248.874869 | T93: 2494.078566 | U93: 3228.403245
B94: Hijo 89 años | C94: 32300 | D94: 41810 | E94: 57780 | F94: 27455 | G94: 35538.5 | I94: Hijo 89 años | J94: 2749.286669 | K94: 3558.751568 | L94: 4918.0738 | M94: 2336.893669 | N94: 3024.938832 | P94: Hijo 89 años | Q94: 2934.210077 | R94: 3798.121465 | S94: 5248.874869 | T94: 2494.078566 | U94: 3228.403245
B95: Hijo 90 años | C95: 32300 | D95: 41810 | E95: 57780 | F95: 27455 | G95: 35538.5 | I95: Hijo 90 años | J95: 2749.286669 | K95: 3558.751568 | L95: 4918.0738 | M95: 2336.893669 | N95: 3024.938832 | P95: Hijo 90 años | Q95: 2934.210077 | R95: 3798.121465 | S95: 5248.874869 | T95: 2494.078566 | U95: 3228.403245
B96: Hijo 91 años | C96: 32300 | D96: 41810 | E96: 57780 | F96: 27455 | G96: 35538.5 | I96: Hijo 91 años | J96: 2749.286669 | K96: 3558.751568 | L96: 4918.0738 | M96: 2336.893669 | N96: 3024.938832 | P96: Hijo 91 años | Q96: 2934.210077 | R96: 3798.121465 | S96: 5248.874869 | T96: 2494.078566 | U96: 3228.403245
B97: Hijo 92 años | C97: 32300 | D97: 41810 | E97: 57780 | F97: 27455 | G97: 35538.5 | I97: Hijo 92 años | J97: 2749.286669 | K97: 3558.751568 | L97: 4918.0738 | M97: 2336.893669 | N97: 3024.938832 | P97: Hijo 92 años | Q97: 2934.210077 | R97: 3798.121465 | S97: 5248.874869 | T97: 2494.078566 | U97: 3228.403245
B98: Hijo 93 años | C98: 32300 | D98: 41810 | E98: 57780 | F98: 27455 | G98: 35538.5 | I98: Hijo 93 años | J98: 2749.286669 | K98: 3558.751568 | L98: 4918.0738 | M98: 2336.893669 | N98: 3024.938832 | P98: Hijo 93 años | Q98: 2934.210077 | R98: 3798.121465 | S98: 5248.874869 | T98: 2494.078566 | U98: 3228.403245
B99: Hijo 94 años | C99: 32300 | D99: 41810 | E99: 57780 | F99: 27455 | G99: 35538.5 | I99: Hijo 94 años | J99: 2749.286669 | K99: 3558.751568 | L99: 4918.0738 | M99: 2336.893669 | N99: 3024.938832 | P99: Hijo 94 años | Q99: 2934.210077 | R99: 3798.121465 | S99: 5248.874869 | T99: 2494.078566 | U99: 3228.403245
B100: Hijo 95 años | C100: 32300 | D100: 41810 | E100: 57780 | F100: 27455 | G100: 35538.5 | I100: Hijo 95 años | J100: 2749.286669 | K100: 3558.751568 | L100: 4918.0738 | M100: 2336.893669 | N100: 3024.938832 | P100: Hijo 95 años | Q100: 2934.210077 | R100: 3798.121465 | S100: 5248.874869 | T100: 2494.078566 | U100: 3228.403245
B101: Hijo 96 años | C101: 32300 | D101: 41810 | E101: 57780 | F101: 27455 | G101: 35538.5 | I101: Hijo 96 años | J101: 2749.286669 | K101: 3558.751568 | L101: 4918.0738 | M101: 2336.893669 | N101: 3024.938832 | P101: Hijo 96 años | Q101: 2934.210077 | R101: 3798.121465 | S101: 5248.874869 | T101: 2494.078566 | U101: 3228.403245
B102: Hijo 97 años | C102: 32300 | D102: 41810 | E102: 57780 | F102: 27455 | G102: 35538.5 | I102: Hijo 97 años | J102: 2749.286669 | K102: 3558.751568 | L102: 4918.0738 | M102: 2336.893669 | N102: 3024.938832 | P102: Hijo 97 años | Q102: 2934.210077 | R102: 3798.121465 | S102: 5248.874869 | T102: 2494.078566 | U102: 3228.403245
B103: Hijo 98 años | C103: 32300 | D103: 41810 | E103: 57780 | F103: 27455 | G103: 35538.5 | I103: Hijo 98 años | J103: 2749.286669 | K103: 3558.751568 | L103: 4918.0738 | M103: 2336.893669 | N103: 3024.938832 | P103: Hijo 98 años | Q103: 2934.210077 | R103: 3798.121465 | S103: 5248.874869 | T103: 2494.078566 | U103: 3228.403245
B104: Hijo 99 años | C104: 32300 | D104: 41810 | E104: 57780 | F104: 27455 | G104: 35538.5 | I104: Hijo 99 años | J104: 2749.286669 | K104: 3558.751568 | L104: 4918.0738 | M104: 2336.893669 | N104: 3024.938832 | P104: Hijo 99 años | Q104: 2934.210077 | R104: 3798.121465 | S104: 5248.874869 | T104: 2494.078566 | U104: 3228.403245
B105: Hijo 100 años | C105: 32300 | D105: 41810 | E105: 57780 | F105: 27455 | G105: 35538.5 | I105: Hijo 100 años | J105: 2749.286669 | K105: 3558.751568 | L105: 4918.0738 | M105: 2336.893669 | N105: 3024.938832 | P105: Hijo 100 años | Q105: 2934.210077 | R105: 3798.121465 | S105: 5248.874869 | T105: 2494.078566 | U105: 3228.403245
B106: Hija 0 años | C106: 3117 | D106: 3746 | E106: 4370 | F106: 2649.45 | G106: 3184.1 | I106: Hija 0 años | J106: 265.3104194 | K106: 318.8491598 | L106: 371.9623141 | M106: 225.5138565 | N106: 271.0217859 | P106: Hija 0 años | Q106: 283.1558146 | R106: 340.295695 | S106: 396.9813634 | T106: 240.6824424 | U106: 289.2513408
B107: Hija 1 año | C107: 3117 | D107: 3746 | E107: 4370 | F107: 2649.45 | G107: 3184.1 | I107: Hija 1 año | J107: 265.3104194 | K107: 318.8491598 | L107: 371.9623141 | M107: 225.5138565 | N107: 271.0217859 | P107: Hija 1 año | Q107: 283.1558146 | R107: 340.295695 | S107: 396.9813634 | T107: 240.6824424 | U107: 289.2513408
B108: Hija 2 años | C108: 3117 | D108: 3746 | E108: 4370 | F108: 2649.45 | G108: 3184.1 | I108: Hija 2 años | J108: 265.3104194 | K108: 318.8491598 | L108: 371.9623141 | M108: 225.5138565 | N108: 271.0217859 | P108: Hija 2 años | Q108: 283.1558146 | R108: 340.295695 | S108: 396.9813634 | T108: 240.6824424 | U108: 289.2513408
B109: Hija 3 años | C109: 3117 | D109: 3746 | E109: 4370 | F109: 2649.45 | G109: 3184.1 | I109: Hija 3 años | J109: 265.3104194 | K109: 318.8491598 | L109: 371.9623141 | M109: 225.5138565 | N109: 271.0217859 | P109: Hija 3 años | Q109: 283.1558146 | R109: 340.295695 | S109: 396.9813634 | T109: 240.6824424 | U109: 289.2513408
B110: Hija 4 años | C110: 3117 | D110: 3746 | E110: 4370 | F110: 2649.45 | G110: 3184.1 | I110: Hija 4 años | J110: 265.3104194 | K110: 318.8491598 | L110: 371.9623141 | M110: 225.5138565 | N110: 271.0217859 | P110: Hija 4 años | Q110: 283.1558146 | R110: 340.295695 | S110: 396.9813634 | T110: 240.6824424 | U110: 289.2513408
B111: Hija 5 años | C111: 3117 | D111: 3746 | E111: 4370 | F111: 2649.45 | G111: 3184.1 | I111: Hija 5 años | J111: 265.3104194 | K111: 318.8491598 | L111: 371.9623141 | M111: 225.5138565 | N111: 271.0217859 | P111: Hija 5 años | Q111: 283.1558146 | R111: 340.295695 | S111: 396.9813634 | T111: 240.6824424 | U111: 289.2513408
B112: Hija 6 años | C112: 3117 | D112: 3746 | E112: 4370 | F112: 2649.45 | G112: 3184.1 | I112: Hija 6 años | J112: 265.3104194 | K112: 318.8491598 | L112: 371.9623141 | M112: 225.5138565 | N112: 271.0217859 | P112: Hija 6 años | Q112: 283.1558146 | R112: 340.295695 | S112: 396.9813634 | T112: 240.6824424 | U112: 289.2513408
B113: Hija 7 años | C113: 3117 | D113: 3746 | E113: 4370 | F113: 2649.45 | G113: 3184.1 | I113: Hija 7 años | J113: 265.3104194 | K113: 318.8491598 | L113: 371.9623141 | M113: 225.5138565 | N113: 271.0217859 | P113: Hija 7 años | Q113: 283.1558146 | R113: 340.295695 | S113: 396.9813634 | T113: 240.6824424 | U113: 289.2513408
B114: Hija 8 años | C114: 3117 | D114: 3746 | E114: 4370 | F114: 2649.45 | G114: 3184.1 | I114: Hija 8 años | J114: 265.3104194 | K114: 318.8491598 | L114: 371.9623141 | M114: 225.5138565 | N114: 271.0217859 | P114: Hija 8 años | Q114: 283.1558146 | R114: 340.295695 | S114: 396.9813634 | T114: 240.6824424 | U114: 289.2513408
B115: Hija 9 años | C115: 3117 | D115: 3746 | E115: 4370 | F115: 2649.45 | G115: 3184.1 | I115: Hija 9 años | J115: 265.3104194 | K115: 318.8491598 | L115: 371.9623141 | M115: 225.5138565 | N115: 271.0217859 | P115: Hija 9 años | Q115: 283.1558146 | R115: 340.295695 | S115: 396.9813634 | T115: 240.6824424 | U115: 289.2513408
B116: Hija 10 años | C116: 3117 | D116: 3746 | E116: 4370 | F116: 2649.45 | G116: 3184.1 | I116: Hija 10 años | J116: 265.3104194 | K116: 318.8491598 | L116: 371.9623141 | M116: 225.5138565 | N116: 271.0217859 | P116: Hija 10 años | Q116: 283.1558146 | R116: 340.295695 | S116: 396.9813634 | T116: 240.6824424 | U116: 289.2513408
B117: Hija 11 años | C117: 3117 | D117: 3746 | E117: 4370 | F117: 2649.45 | G117: 3184.1 | I117: Hija 11 años | J117: 265.3104194 | K117: 318.8491598 | L117: 371.9623141 | M117: 225.5138565 | N117: 271.0217859 | P117: Hija 11 años | Q117: 283.1558146 | R117: 340.295695 | S117: 396.9813634 | T117: 240.6824424 | U117: 289.2513408
B118: Hija 12 años | C118: 3117 | D118: 3746 | E118: 4370 | F118: 2649.45 | G118: 3184.1 | I118: Hija 12 años | J118: 265.3104194 | K118: 318.8491598 | L118: 371.9623141 | M118: 225.5138565 | N118: 271.0217859 | P118: Hija 12 años | Q118: 283.1558146 | R118: 340.295695 | S118: 396.9813634 | T118: 240.6824424 | U118: 289.2513408
B119: Hija 13 años | C119: 3117 | D119: 3746 | E119: 4370 | F119: 2649.45 | G119: 3184.1 | I119: Hija 13 años | J119: 265.3104194 | K119: 318.8491598 | L119: 371.9623141 | M119: 225.5138565 | N119: 271.0217859 | P119: Hija 13 años | Q119: 283.1558146 | R119: 340.295695 | S119: 396.9813634 | T119: 240.6824424 | U119: 289.2513408
B120: Hija 14 años | C120: 3117 | D120: 3746 | E120: 4370 | F120: 2649.45 | G120: 3184.1 | I120: Hija 14 años | J120: 265.3104194 | K120: 318.8491598 | L120: 371.9623141 | M120: 225.5138565 | N120: 271.0217859 | P120: Hija 14 años | Q120: 283.1558146 | R120: 340.295695 | S120: 396.9813634 | T120: 240.6824424 | U120: 289.2513408
B121: Hija 15 años | C121: 3117 | D121: 3746 | E121: 4370 | F121: 2649.45 | G121: 3184.1 | I121: Hija 15 años | J121: 265.3104194 | K121: 318.8491598 | L121: 371.9623141 | M121: 225.5138565 | N121: 271.0217859 | P121: Hija 15 años | Q121: 283.1558146 | R121: 340.295695 | S121: 396.9813634 | T121: 240.6824424 | U121: 289.2513408
B122: Hija 16 años | C122: 3117 | D122: 3746 | E122: 4370 | F122: 2649.45 | G122: 3184.1 | I122: Hija 16 años | J122: 265.3104194 | K122: 318.8491598 | L122: 371.9623141 | M122: 225.5138565 | N122: 271.0217859 | P122: Hija 16 años | Q122: 283.1558146 | R122: 340.295695 | S122: 396.9813634 | T122: 240.6824424 | U122: 289.2513408
B123: Hija 17 años | C123: 3117 | D123: 3746 | E123: 4370 | F123: 2649.45 | G123: 3184.1 | I123: Hija 17 años | J123: 265.3104194 | K123: 318.8491598 | L123: 371.9623141 | M123: 225.5138565 | N123: 271.0217859 | P123: Hija 17 años | Q123: 283.1558146 | R123: 340.295695 | S123: 396.9813634 | T123: 240.6824424 | U123: 289.2513408
B124: Hija 18 años | C124: 3232 | D124: 3746 | E124: 4387 | F124: 2747.2 | G124: 3184.1 | I124: Hija 18 años | J124: 275.0989014 | K124: 318.8491598 | L124: 373.409307 | M124: 233.8340662 | N124: 271.0217859 | P124: Hija 18 años | Q124: 293.6026926 | R124: 340.295695 | S124: 398.5256845 | T124: 249.5622887 | U124: 289.2513408
B125: Hija 19 años | C125: 3232 | D125: 3746 | E125: 4387 | F125: 2747.2 | G125: 3184.1 | I125: Hija 19 años | J125: 275.0989014 | K125: 318.8491598 | L125: 373.409307 | M125: 233.8340662 | N125: 271.0217859 | P125: Hija 19 años | Q125: 293.6026926 | R125: 340.295695 | S125: 398.5256845 | T125: 249.5622887 | U125: 289.2513408
B126: Hija 20 años | C126: 3232 | D126: 3746 | E126: 4387 | F126: 2747.2 | G126: 3184.1 | I126: Hija 20 años | J126: 275.0989014 | K126: 318.8491598 | L126: 373.409307 | M126: 233.8340662 | N126: 271.0217859 | P126: Hija 20 años | Q126: 293.6026926 | R126: 340.295695 | S126: 398.5256845 | T126: 249.5622887 | U126: 289.2513408
B127: Hija 21 años | C127: 3232 | D127: 3746 | E127: 4387 | F127: 2747.2 | G127: 3184.1 | I127: Hija 21 años | J127: 275.0989014 | K127: 318.8491598 | L127: 373.409307 | M127: 233.8340662 | N127: 271.0217859 | P127: Hija 21 años | Q127: 293.6026926 | R127: 340.295695 | S127: 398.5256845 | T127: 249.5622887 | U127: 289.2513408
B128: Hija 22 años | C128: 3232 | D128: 3746 | E128: 4387 | F128: 2747.2 | G128: 3184.1 | I128: Hija 22 años | J128: 275.0989014 | K128: 318.8491598 | L128: 373.409307 | M128: 233.8340662 | N128: 271.0217859 | P128: Hija 22 años | Q128: 293.6026926 | R128: 340.295695 | S128: 398.5256845 | T128: 249.5622887 | U128: 289.2513408
B129: Hija 23 años | C129: 3232 | D129: 3746 | E129: 4387 | F129: 2747.2 | G129: 3184.1 | I129: Hija 23 años | J129: 275.0989014 | K129: 318.8491598 | L129: 373.409307 | M129: 233.8340662 | N129: 271.0217859 | P129: Hija 23 años | Q129: 293.6026926 | R129: 340.295695 | S129: 398.5256845 | T129: 249.5622887 | U129: 289.2513408
B130: Hija 24 años | C130: 3232 | D130: 3746 | E130: 4387 | F130: 2747.2 | G130: 3184.1 | I130: Hija 24 años | J130: 275.0989014 | K130: 318.8491598 | L130: 373.409307 | M130: 233.8340662 | N130: 271.0217859 | P130: Hija 24 años | Q130: 293.6026926 | R130: 340.295695 | S130: 398.5256845 | T130: 249.5622887 | U130: 289.2513408
B131: Hija 25 años | C131: 3232 | D131: 3746 | E131: 4387 | F131: 2747.2 | G131: 3184.1 | I131: Hija 25 años | J131: 275.0989014 | K131: 318.8491598 | L131: 373.409307 | M131: 233.8340662 | N131: 271.0217859 | P131: Hija 25 años | Q131: 293.6026926 | R131: 340.295695 | S131: 398.5256845 | T131: 249.5622887 | U131: 289.2513408
B132: Hija 26 años | C132: 3358 | D132: 4132 | E132: 4862 | F132: 2854.3 | G132: 3512.2 | I132: Hija 26 años | J132: 285.8236729 | K132: 351.7044123 | L132: 413.8399933 | M132: 242.950122 | N132: 298.9487504 | P132: Hija 26 años | Q132: 305.0488371 | R132: 375.3608681 | S132: 441.6758327 | T132: 259.2915116 | U132: 319.0567379
B133: Hija 27 años | C133: 3450 | D133: 4416 | E133: 5318 | F133: 2932.5 | G133: 3753.6 | I133: Hija 27 años | J133: 293.6544585 | K133: 375.8777068 | L133: 452.6534522 | M133: 249.6062897 | N133: 319.4960508 | P133: Hija 27 años | Q133: 313.4063395 | R133: 401.1601146 | S133: 483.0999749 | T133: 266.3953886 | U133: 340.9860974
B134: Hija 28 años | C134: 3542 | D134: 4553 | E134: 5583 | F134: 3010.7 | G134: 3870.05 | I134: Hija 28 años | J134: 301.485244 | K134: 387.5387679 | L134: 475.2095193 | M134: 256.2624574 | N134: 329.4079527 | P134: Hija 28 años | Q134: 321.7638419 | R134: 413.6055257 | S134: 507.1732155 | T134: 273.4992656 | U134: 351.5646969
B135: Hija 29 años | C135: 3634 | D135: 4721 | E135: 5899 | F135: 3088.9 | G135: 4012.85 | I135: Hija 29 años | J135: 309.3160296 | K135: 401.8384633 | L135: 502.1065654 | M135: 262.9186251 | N135: 341.5626938 | P135: Hija 29 años | Q135: 330.1213443 | R135: 428.8670518 | S135: 535.8794194 | T135: 280.6031426 | U135: 364.5369941
B136: Hija 30 años | C136: 3726 | D136: 4748 | E136: 6251 | F136: 3167.1 | G136: 4035.8 | I136: Hija 30 años | J136: 317.1468151 | K136: 404.1366286 | L136: 532.0678318 | M136: 269.5747929 | N136: 343.5161343 | P136: Hija 30 años | Q136: 338.4788467 | R136: 431.3197971 | S136: 567.8559502 | T136: 287.7070197 | U136: 366.6218275
B137: Hija 31 años | C137: 3818 | D137: 4811 | E137: 6466 | F137: 3245.3 | G137: 4089.35 | I137: Hija 31 años | J137: 324.9776007 | K137: 409.4990144 | L137: 550.3680372 | M137: 276.2309606 | N137: 348.0741622 | P137: Hija 31 años | Q137: 346.8363491 | R137: 437.0428694 | S137: 587.3870699 | T137: 294.8108967 | U137: 371.486439
B138: Hija 32 años | C138: 3910 | D138: 4835 | E138: 6729 | F138: 3323.5 | G138: 4109.75 | I138: Hija 32 años | J138: 332.8083863 | K138: 411.541828 | L138: 572.7538699 | M138: 282.8871283 | N138: 349.8105538 | P138: Hija 32 años | Q138: 355.1938515 | R138: 439.2230874 | S138: 611.2786257 | T138: 301.9147737 | U138: 373.3396243
B139: Hija 33 años | C139: 4002 | D139: 4885 | E139: 6893 | F139: 3401.7 | G139: 4152.25 | I139: Hija 33 años | J139: 340.6391718 | K139: 415.7976897 | L139: 586.7130963 | M139: 289.543296 | N139: 353.4280363 | P139: Hija 33 años | Q139: 363.5513538 | R139: 443.7652083 | S139: 626.1767821 | T139: 309.0186508 | U139: 377.200427
B140: Hija 34 años | C140: 4094 | D140: 4911 | E140: 7033 | F140: 3479.9 | G140: 4174.35 | I140: Hija 34 años | J140: 348.4699574 | K140: 418.0107378 | L140: 598.6295091 | M140: 296.1994638 | N140: 355.3091272 | P140: Hija 34 años | Q140: 371.9088562 | R140: 446.1271111 | S140: 638.8947205 | T140: 316.1225278 | U140: 379.2080445
B141: Hija 35 años | C141: 4186 | D141: 4975 | E141: 7147 | F141: 3558.1 | G141: 4228.75 | I141: Hija 35 años | J141: 356.3007429 | K141: 423.4582408 | L141: 608.3328738 | M141: 302.8556315 | N141: 359.9395047 | P141: Hija 35 años | Q141: 380.2663586 | R141: 451.9410258 | S141: 649.2507561 | T141: 323.2264048 | U141: 384.149872
B142: Hija 36 años | C142: 4278 | D142: 4986 | E142: 7236 | F142: 3636.3 | G142: 4238.1 | I142: Hija 36 años | J142: 364.1315285 | K142: 424.3945304 | L142: 615.9083077 | M142: 309.5117992 | N142: 360.7353508 | P142: Hija 36 años | Q142: 388.623861 | R142: 452.9402924 | S142: 657.3357312 | T142: 330.3302819 | U142: 384.9992486
B143: Hija 37 años | C143: 4370 | D143: 4996 | E143: 7326 | F143: 3714.5 | G143: 4246.6 | I143: Hija 37 años | J143: 371.9623141 | K143: 425.2457027 | L143: 623.5688588 | M143: 316.1679669 | N143: 361.4588473 | P143: Hija 37 años | Q143: 396.9813634 | R143: 453.8487166 | S143: 665.5115488 | T143: 337.4341589 | U143: 385.7714091
B144: Hija 38 años | C144: 4485 | D144: 5006 | E144: 7476 | F144: 3812.25 | G144: 4255.1 | I144: Hija 38 años | J144: 381.750796 | K144: 426.0968751 | L144: 636.3364439 | M144: 324.4881766 | N144: 362.1823438 | P144: Hija 38 años | Q144: 407.4282414 | R144: 454.7571408 | S144: 679.1379114 | T144: 346.3140052 | U144: 386.5435696
B145: Hija 39 años | C145: 4600 | D145: 5017 | E145: 7638 | F145: 3910 | G145: 4264.45 | I145: Hija 39 años | J145: 391.539278 | K145: 427.0331647 | L145: 650.1254359 | M145: 332.8083863 | N145: 362.97819 | P145: Hija 39 años | Q145: 417.8751194 | R145: 455.7564074 | S145: 693.854383 | T145: 355.1938515 | U145: 387.3929462
B146: Hija 40 años | C146: 4715 | D146: 5066 | E146: 7973 | F146: 4007.75 | G146: 4306.1 | I146: Hija 40 años | J146: 401.3277599 | K146: 431.2039092 | L146: 678.6397094 | M146: 341.1285959 | N146: 366.5233228 | P146: Hija 40 años | Q146: 428.3219973 | R146: 460.2076858 | S146: 724.2865927 | T146: 364.0736977 | U146: 391.1765329
B147: Hija 41 años | C147: 4853 | D147: 5480 | E147: 8269 | F147: 4125.05 | G147: 4658 | I147: Hija 41 años | J147: 413.0739382 | K147: 466.4424442 | L147: 703.8344107 | M147: 351.1128475 | N147: 396.4760775 | P147: Hija 41 años | Q147: 440.8582509 | R147: 497.8164465 | S147: 751.1759483 | T147: 374.7295133 | U147: 423.1439796
B148: Hija 42 años | C148: 4991 | D148: 5882 | E148: 8675 | F148: 4242.35 | G148: 4999.7 | I148: Hija 42 años | J148: 424.8201166 | K148: 500.6595724 | L148: 738.3920079 | M148: 361.0970991 | N148: 425.5606365 | P148: Hija 42 años | Q148: 453.3945045 | R148: 534.3350983 | S148: 788.0579697 | T148: 385.3853288 | U148: 454.1848335
B149: Hija 43 años | C149: 5129 | D149: 6403 | E149: 8982 | F149: 4359.65 | G149: 5442.55 | I149: Hija 43 años | J149: 436.5662949 | K149: 545.0056515 | L149: 764.5229988 | M149: 371.0813507 | N149: 463.2548037 | P149: Hija 43 años | Q149: 465.9307581 | R149: 581.6639977 | S149: 815.9465918 | T149: 396.0411444 | U149: 494.414398
B150: Hija 44 años | C150: 5290 | D150: 6631 | E150: 9313 | F150: 4496.5 | G150: 5636.35 | I150: Hija 44 años | J150: 450.2701696 | K150: 564.4123809 | L150: 792.6968034 | M150: 382.7296442 | N150: 479.7505238 | P150: Hija 44 años | Q150: 480.5563873 | R150: 602.3760688 | S150: 846.0154319 | T150: 408.4729292 | U150: 512.0196585
B151: Hija 45 años | C151: 5497 | D151: 6883 | E151: 9546 | F151: 4672.45 | G151: 5850.55 | I151: Hija 45 años | J151: 467.8894372 | K151: 585.8619239 | L151: 812.529119 | M151: 397.7060216 | N151: 497.9826354 | P151: Hija 45 años | Q151: 499.3607676 | R151: 625.2683579 | S151: 867.1817151 | T151: 424.4566525 | U151: 531.4781043
B152: Hija 46 años | C152: 5727 | D152: 7389 | E152: 10059 | F152: 4867.95 | G152: 6280.65 | I152: Hija 46 años | J152: 487.466401 | K152: =D152*$J$2 -> 628.9312445 | L152: =E152*$J$2 -> 856.1942602 | M152: =F152*$J$2 -> 414.3464409 | N152: =G152*$J$2 -> 534.5915578 | P152: Hija 46 años | Q152: 520.2545236 | R152: =D152*$Q$2 -> 671.2346211 | S152: =E152*$Q$2 -> 913.7838751 | T152: =F152*$Q$2 -> 442.2163451 | U152: =G152*$Q$2 -> 570.5494279
B153: Hija 47 años | C153: 5957 | D153: 7697 | E153: 10423 | F153: 5063.45 | G153: 6542.45 | I153: Hija 47 años | J153: =C153*$J$2 -> 507.0433649 | K153: 655.1473527 | L153: 887.1769335 | M153: 430.9868602 | N153: 556.8752498 | P153: Hija 47 años | Q153: =C153*$Q$2 -> 541.1482796 | R153: 699.2140856 | S153: 946.850515 | T153: 459.9760376 | U153: 594.3319727
B154: Hija 48 años | C154: 6199 | D154: 7946 | E154: 10691 | F154: 5269.15 | G154: 6754.1 | I154: Hija 48 años | J154: 527.6417357 | K154: 676.341544 | L154: 909.9883523 | M154: 448.4954753 | N154: 574.8903124 | P154: Hija 48 años | Q154: 563.1321445 | R154: 721.8338475 | S154: 971.1962828 | T154: 478.6623229 | U154: 613.5587704
B155: Hija 49 años | C155: 6475 | D155: 8207 | E155: 11091 | F155: 5503.75 | G155: 6975.95 | I155: Hija 49 años | J155: 551.1340923 | K155: 698.5571422 | L155: 944.035246 | M155: 468.4639785 | N155: 593.7735709 | P155: Hija 49 años | Q155: 588.2046517 | R155: 745.5437184 | S155: 1007.53325 | T155: 499.9739539 | U155: 633.7121606
B156: Hija 50 años | C156: 6785 | D156: 8512 | E156: 11576 | F156: 5767.25 | G156: 7235.2 | I156: Hija 50 años | J156: 577.520435 | K156: 724.5178987 | L156: 985.3171047 | M156: 490.8923697 | N156: 615.8402139 | P156: Hija 50 años | Q156: 616.3658011 | R156: 773.2506556 | S156: 1051.591822 | T156: 523.9109309 | U156: 657.2630573
B157: Hija 51 años | C157: 7107 | D157: 9081 | E157: 12441 | F157: 6040.95 | G157: 7718.85 | I157: Hija 51 años | J157: 604.9281844 | K157: 772.949605 | L157: 1058.943512 | M157: 514.1889568 | N157: 657.0071643 | P157: Hija 51 años | Q157: 645.6170594 | R157: 824.9399911 | S157: 1130.170513 | T157: 548.7745005 | U157: 701.1989924
B158: Hija 52 años | C158: 7475 | D158: 9493 | E158: 13369 | F158: 6353.75 | G158: 8069.05 | I158: Hija 52 años | J158: 636.2513267 | K158: 808.0179056 | L158: 1137.932306 | M158: 540.8136277 | N158: 686.8152197 | P158: Hija 52 años | Q158: 679.047069 | R158: 862.367067 | S158: 1214.472276 | T158: 577.1900086 | U158: 733.0120069
B159: Hija 53 años | C159: 7878 | D159: 9809 | E159: 14136 | F159: 6696.3 | G159: 8337.65 | I159: Hija 53 años | J159: 670.5535721 | K159: 834.9149516 | L159: 1203.217225 | M159: 569.9705363 | N159: 709.6777089 | P159: Hija 53 años | Q159: 715.6565631 | R159: 891.0732708 | S159: 1284.14841 | T159: 608.3080786 | U159: 757.4122802
B160: Hija 54 años | C160: 8303 | D160: 10231 | E160: 14829 | F160: 7057.55 | G160: 8696.35 | I160: Hija 54 años | J160: 706.7283967 | K160: 870.8344245 | L160: 1262.203468 | M160: 600.7191372 | N160: 740.2092608 | P160: Hija 54 años | Q160: 754.2645904 | R160: 929.4087709 | S160: 1347.102205 | T160: 641.1249019 | U160: 789.9974553
B161: Hija 55 años | C161: 8786 | D161: 10686 | E161: 15458 | F161: 7468.1 | G161: 9083.1 | I161: Hija 55 años | J161: 747.8400209 | K161: 909.5627661 | L161: 1315.742208 | M161: 635.6640178 | N161: 773.1283512 | P161: Hija 55 años | Q161: 798.141478 | R161: 970.7420708 | S161: 1404.242086 | T161: 678.4202563 | U161: 825.1307601
B162: Hija 56 años | C162: 9315 | D162: 11142 | E162: 15953 | F162: 7917.75 | G162: 9470.7 | I162: Hija 56 años | J162: 792.8670379 | K162: 948.376225 | L162: 1357.875239 | M162: 673.9369822 | N162: 806.1197912 | P162: Hija 56 años | Q162: 846.1971167 | R162: 1012.166213 | S162: 1449.209082 | T162: 719.2675492 | U162: 860.3412811
B163: Hija 57 años | C163: 9890 | D163: 11596 | E163: 16884 | F163: 8406.5 | G163: 9856.6 | I163: Hija 57 años | J163: 841.8094476 | K163: 987.0194494 | L163: 1437.119385 | M163: 715.5380305 | N163: 838.966532 | P163: Hija 57 años | Q163: 898.4315066 | R163: 1053.40867 | S163: 1533.783373 | T163: 763.6667806 | U163: 895.3973699
B164: Hija 58 años | C164: 10557 | D164: 12131 | E164: 17826 | F164: 8973.45 | G164: 10311.35 | I164: Hija 58 años | J164: 898.5826429 | K164: 1032.55717 | L164: 1517.299819 | M164: 763.7952465 | N164: 877.6735943 | P164: Hija 58 años | Q164: 959.0233989 | R164: 1102.009364 | S164: 1619.35693 | T164: 815.1698891 | U164: 936.7079591
B165: Hija 59 años | C165: 11213 | D165: 13041 | E165: 18814 | F165: 9531.05 | G165: 11084.85 | I165: Hija 59 años | J165: 954.4195486 | K165: 1110.013853 | L165: 1601.395647 | M165: 811.2566163 | N165: 943.511775 | P165: Hija 59 años | Q165: 1018.616025 | R165: 1184.675963 | S165: 1709.109238 | T165: 865.8236209 | U165: 1006.974569
B166: Hija 60 años | C166: 11868 | D166: 14277 | E166: 19995 | F166: 10087.8 | G166: 12135.45 | I166: Hija 60 años | J166: 1010.171337 | K166: 1215.218755 | L166: 1701.919101 | M166: 858.6456365 | N166: 1032.935941 | P166: Hija 60 años | Q166: 1078.117808 | R166: 1296.957191 | S166: 1816.394133 | T166: 916.4001368 | U166: 1102.413612
B167: Hija 61 años | C167: 12535 | D167: 15124 | E167: 20991 | F167: 10654.75 | G167: 12855.4 | I167: Hija 61 años | J167: 1066.944532 | K167: 1287.313052 | L167: 1786.695866 | M167: 906.9028526 | N167: 1094.216094 | P167: Hija 61 años | Q167: 1138.7097 | R167: 1373.900719 | S167: 1906.873181 | T167: 967.9032452 | U167: 1167.815611
B168: Hija 62 años | C168: 13455 | D168: 16649 | E168: 22192 | F168: 11436.75 | G168: 14151.65 | I168: Hija 62 años | J168: 1145.252388 | K168: 1417.116834 | L168: 1888.921664 | M168: 973.4645298 | N168: 1204.549309 | P168: Hija 62 años | Q168: 1222.284724 | R168: 1512.435405 | S168: 2015.974924 | T168: 1038.942016 | U168: 1285.570094
B169: Hija 63 años | C169: 14536 | D169: 17911 | E169: 23704 | F169: 12355.6 | G169: 15224.35 | I169: Hija 63 años | J169: 1237.264118 | K169: 1524.534784 | L169: 2017.618923 | M169: 1051.674501 | N169: 1295.854567 | P169: Hija 63 años | Q169: 1320.485377 | R169: 1627.078535 | S169: 2153.328659 | T169: 1122.412571 | U169: 1383.016755
B170: Hija 64 años | C170: 15698 | D170: 19169 | E170: 25588 | F170: 13343.3 | G170: 16293.65 | I170: Hija 64 años | J170: 1336.170345 | K170: 1631.612265 | L170: 2177.979792 | M170: 1135.744793 | N170: 1386.870425 | P170: Hija 64 años | Q170: 1426.044266 | R170: 1741.358296 | S170: 2324.475773 | T170: 1212.137626 | U170: 1480.154552
B171: Hija 65 años | C171: 17078 | D171: 20798 | E171: 27348 | F171: 14516.3 | G171: 17678.3 | I171: Hija 65 años | J171: 1453.632128 | K171: 1770.26824 | L171: 2327.786125 | M171: 1235.587309 | N171: 1504.728004 | P171: Hija 65 años | Q171: 1551.406802 | R171: 1889.340594 | S171: 2484.358427 | T171: 1318.695782 | U171: 1605.939505
B172: Hija 66 años | C172: 20040 | D172: 22900 | E172: 31970 | F172: 17034 | G172: 19465 | I172: Hija 66 años | J172: 1705.749376 | K172: 1949.184666 | L172: 2721.197982 | M172: 1449.88697 | N172: 1656.806966 | P172: Hija 66 años | Q172: 1820.482042 | R172: 2080.291355 | S172: 2904.23208 | T172: 1547.409735 | U172: 1768.247652
B173: Hija 67 años | C173: 21700 | D173: 25210 | E173: 33900 | F173: 18445 | G173: 21428.5 | I173: Hija 67 años | J173: 1847.043985 | K173: 2145.805478 | L173: 2885.474244 | M173: 1569.987387 | N173: 1823.934656 | P173: Hija 67 años | Q173: 1971.280454 | R173: 2290.137339 | S173: 3079.557945 | T173: 1675.588386 | U173: 1946.616738
B174: Hija 68 años | C174: 23500 | D174: 27660 | E174: 36080 | F174: 19975 | G174: 23511 | I174: Hija 68 años | J174: 2000.255007 | K174: 2354.342702 | L174: 3071.029815 | M174: 1700.216756 | N174: 2001.191297 | P174: Hija 68 años | Q174: 2134.796805 | R174: 2512.701261 | S174: 3277.594414 | T174: 1814.577285 | U174: 2135.796072
B175: Hija 69 años | C175: 25150 | D175: 29700 | E175: 39420 | F175: 21377.5 | G175: 25245 | I175: Hija 69 años | J175: 2140.698444 | K175: 2527.98186 | L175: 3355.321378 | M175: 1819.593677 | N175: 2148.784581 | P175: Hija 69 años | Q175: 2284.686794 | R175: 2698.019792 | S175: 3581.008088 | T175: 1941.983775 | U175: 2293.316824
B176: Hija 70 años | C176: 26940 | D176: 31520 | E176: 42370 | F176: 22899 | G176: 26792 | I176: Hija 70 años | J176: 2293.058293 | K176: 2682.895226 | L176: 3606.417219 | M176: 1949.099549 | N176: 2280.460942 | P176: Hija 70 años | Q176: 2447.294721 | R176: 2863.352992 | S176: 3848.993219 | T176: 2080.200513 | U176: 2433.850043
B177: Hija 71 años | C177: 28860 | D177: 34220 | E177: 45970 | F177: 24531 | G177: 29087 | I177: Hija 71 años | J177: 2456.483383 | K177: 2912.711759 | L177: 3912.839262 | M177: 2088.010876 | N177: 2475.804995 | P177: Hija 71 años | Q177: 2621.712162 | R177: 3108.627518 | S177: 4176.025921 | T177: 2228.455338 | U177: 2642.333391
B178: Hija 72 años | C178: 28860 | D178: 34220 | E178: 45970 | F178: 24531 | G178: 29087 | I178: Hija 72 años | J178: 2456.483383 | K178: 2912.711759 | L178: 3912.839262 | M178: 2088.010876 | N178: 2475.804995 | P178: Hija 72 años | Q178: 2621.712162 | R178: 3108.627518 | S178: 4176.025921 | T178: 2228.455338 | U178: 2642.333391
B179: Hija 73 años | C179: 28860 | D179: 34220 | E179: 45970 | F179: 24531 | G179: 29087 | I179: Hija 73 años | J179: 2456.483383 | K179: 2912.711759 | L179: 3912.839262 | M179: 2088.010876 | N179: 2475.804995 | P179: Hija 73 años | Q179: 2621.712162 | R179: 3108.627518 | S179: 4176.025921 | T179: 2228.455338 | U179: 2642.333391
B180: Hija 74 años | C180: 28860 | D180: 34220 | E180: 45970 | F180: 24531 | G180: 29087 | I180: Hija 74 años | J180: 2456.483383 | K180: 2912.711759 | L180: 3912.839262 | M180: 2088.010876 | N180: 2475.804995 | P180: Hija 74 años | Q180: 2621.712162 | R180: 3108.627518 | S180: 4176.025921 | T180: 2228.455338 | U180: 2642.333391
B181: Hija 75 años | C181: 28860 | D181: 34220 | E181: 45970 | F181: 24531 | G181: 29087 | I181: Hija 75 años | J181: 2456.483383 | K181: 2912.711759 | L181: 3912.839262 | M181: 2088.010876 | N181: 2475.804995 | P181: Hija 75 años | Q181: 2621.712162 | R181: 3108.627518 | S181: 4176.025921 | T181: 2228.455338 | U181: 2642.333391
B182: Hija 76 años | C182: 30520 | D182: 37750 | E182: 52390 | F182: 25942 | G182: 32087.5 | I182: Hija 76 años | J182: 2597.777992 | K182: 3213.175596 | L182: 4459.291907 | M182: 2208.111293 | N182: 2731.199257 | P182: Hija 76 años | Q182: 2772.510575 | R182: 3429.301251 | S182: 4759.23424 | T182: 2356.633988 | U182: 2914.906064
B183: Hija 77 años | C183: 30520 | D183: 37750 | E183: 52390 | F183: 25942 | G183: 32087.5 | I183: Hija 77 años | J183: 2597.777992 | K183: 3213.175596 | L183: 4459.291907 | M183: 2208.111293 | N183: 2731.199257 | P183: Hija 77 años | Q183: 2772.510575 | R183: 3429.301251 | S183: 4759.23424 | T183: 2356.633988 | U183: 2914.906064
B184: Hija 78 años | C184: 30520 | D184: 37750 | E184: 52390 | F184: 25942 | G184: 32087.5 | I184: Hija 78 años | J184: 2597.777992 | K184: 3213.175596 | L184: 4459.291907 | M184: 2208.111293 | N184: 2731.199257 | P184: Hija 78 años | Q184: 2772.510575 | R184: 3429.301251 | S184: 4759.23424 | T184: 2356.633988 | U184: 2914.906064
B185: Hija 79 años | C185: 30520 | D185: 37750 | E185: 52390 | F185: 25942 | G185: 32087.5 | I185: Hija 79 años | J185: 2597.777992 | K185: 3213.175596 | L185: 4459.291907 | M185: 2208.111293 | N185: 2731.199257 | P185: Hija 79 años | Q185: 2772.510575 | R185: 3429.301251 | S185: 4759.23424 | T185: 2356.633988 | U185: 2914.906064
B186: Hija 80 años | C186: 30520 | D186: 37750 | E186: 52390 | F186: 25942 | G186: 32087.5 | I186: Hija 80 años | J186: 2597.777992 | K186: 3213.175596 | L186: 4459.291907 | M186: 2208.111293 | N186: 2731.199257 | P186: Hija 80 años | Q186: 2772.510575 | R186: 3429.301251 | S186: 4759.23424 | T186: 2356.633988 | U186: 2914.906064
B187: Hija 81 años | C187: 32300 | D187: 41810 | E187: 57780 | F187: 27455 | G187: 35538.5 | I187: Hija 81 años | J187: 2749.286669 | K187: 3558.751568 | L187: 4918.0738 | M187: 2336.893669 | N187: 3024.938832 | P187: Hija 81 años | Q187: 2934.210077 | R187: 3798.121465 | S187: 5248.874869 | T187: 2494.078566 | U187: 3228.403245
B188: Hija 82 años | C188: 32300 | D188: 41810 | E188: 57780 | F188: 27455 | G188: 35538.5 | I188: Hija 82 años | J188: =C188*$J$2 -> 2749.286669 | K188: =D188*$J$2 -> 3558.751568 | L188: =E188*$J$2 -> 4918.0738 | M188: =F188*$J$2 -> 2336.893669 | N188: =G188*$J$2 -> 3024.938832 | P188: Hija 82 años | Q188: =C188*$Q$2 -> 2934.210077 | R188: =D188*$Q$2 -> 3798.121465 | S188: =E188*$Q$2 -> 5248.874869 | T188: =F188*$Q$2 -> 2494.078566 | U188: =G188*$Q$2 -> 3228.403245
B189: Hija 83 años | C189: 32300 | D189: 41810 | E189: 57780 | F189: 27455 | G189: 35538.5 | I189: Hija 83 años | J189: 2749.286669 | K189: 3558.751568 | L189: 4918.0738 | M189: 2336.893669 | N189: 3024.938832 | P189: Hija 83 años | Q189: 2934.210077 | R189: 3798.121465 | S189: 5248.874869 | T189: 2494.078566 | U189: 3228.403245
B190: Hija 84 años | C190: 32300 | D190: 41810 | E190: 57780 | F190: 27455 | G190: 35538.5 | I190: Hija 84 años | J190: 2749.286669 | K190: 3558.751568 | L190: 4918.0738 | M190: 2336.893669 | N190: 3024.938832 | P190: Hija 84 años | Q190: 2934.210077 | R190: 3798.121465 | S190: 5248.874869 | T190: 2494.078566 | U190: 3228.403245
B191: Hija 85 años | C191: 32300 | D191: 41810 | E191: 57780 | F191: 27455 | G191: 35538.5 | I191: Hija 85 años | J191: 2749.286669 | K191: 3558.751568 | L191: 4918.0738 | M191: 2336.893669 | N191: 3024.938832 | P191: Hija 85 años | Q191: 2934.210077 | R191: 3798.121465 | S191: 5248.874869 | T191: 2494.078566 | U191: 3228.403245
B192: Hija 86 años | C192: 32300 | D192: 41810 | E192: 57780 | F192: 27455 | G192: 35538.5 | I192: Hija 86 años | J192: 2749.286669 | K192: 3558.751568 | L192: 4918.0738 | M192: 2336.893669 | N192: 3024.938832 | P192: Hija 86 años | Q192: 2934.210077 | R192: 3798.121465 | S192: 5248.874869 | T192: 2494.078566 | U192: 3228.403245
B193: Hija 87 años | C193: 32300 | D193: 41810 | E193: 57780 | F193: 27455 | G193: 35538.5 | I193: Hija 87 años | J193: 2749.286669 | K193: 3558.751568 | L193: 4918.0738 | M193: 2336.893669 | N193: 3024.938832 | P193: Hija 87 años | Q193: 2934.210077 | R193: 3798.121465 | S193: 5248.874869 | T193: 2494.078566 | U193: 3228.403245
B194: Hija 88 años | C194: 32300 | D194: 41810 | E194: 57780 | F194: 27455 | G194: 35538.5 | I194: Hija 88 años | J194: 2749.286669 | K194: 3558.751568 | L194: 4918.0738 | M194: 2336.893669 | N194: 3024.938832 | P194: Hija 88 años | Q194: 2934.210077 | R194: 3798.121465 | S194: 5248.874869 | T194: 2494.078566 | U194: 3228.403245
B195: Hija 89 años | C195: 32300 | D195: 41810 | E195: 57780 | F195: 27455 | G195: 35538.5 | I195: Hija 89 años | J195: 2749.286669 | K195: 3558.751568 | L195: 4918.0738 | M195: 2336.893669 | N195: 3024.938832 | P195: Hija 89 años | Q195: 2934.210077 | R195: 3798.121465 | S195: 5248.874869 | T195: 2494.078566 | U195: 3228.403245
B196: Hija 90 años | C196: 32300 | D196: 41810 | E196: 57780 | F196: 27455 | G196: 35538.5 | I196: Hija 90 años | J196: 2749.286669 | K196: 3558.751568 | L196: 4918.0738 | M196: 2336.893669 | N196: 3024.938832 | P196: Hija 90 años | Q196: 2934.210077 | R196: 3798.121465 | S196: 5248.874869 | T196: 2494.078566 | U196: 3228.403245
B197: Hija 91 años | C197: 32300 | D197: 41810 | E197: 57780 | F197: 27455 | G197: 35538.5 | I197: Hija 91 años | J197: 2749.286669 | K197: 3558.751568 | L197: 4918.0738 | M197: 2336.893669 | N197: 3024.938832 | P197: Hija 91 años | Q197: 2934.210077 | R197: 3798.121465 | S197: 5248.874869 | T197: 2494.078566 | U197: 3228.403245
B198: Hija 92 años | C198: 32300 | D198: 41810 | E198: 57780 | F198: 27455 | G198: 35538.5 | I198: Hija 92 años | J198: 2749.286669 | K198: 3558.751568 | L198: 4918.0738 | M198: 2336.893669 | N198: 3024.938832 | P198: Hija 92 años | Q198: 2934.210077 | R198: 3798.121465 | S198: 5248.874869 | T198: 2494.078566 | U198: 3228.403245
B199: Hija 93 años | C199: 32300 | D199: 41810 | E199: 57780 | F199: 27455 | G199: 35538.5 | I199: Hija 93 años | J199: 2749.286669 | K199: 3558.751568 | L199: 4918.0738 | M199: 2336.893669 | N199: 3024.938832 | P199: Hija 93 años | Q199: 2934.210077 | R199: 3798.121465 | S199: 5248.874869 | T199: 2494.078566 | U199: 3228.403245
B200: Hija 94 años | C200: 32300 | D200: 41810 | E200: 57780 | F200: 27455 | G200: 35538.5 | I200: Hija 94 años | J200: 2749.286669 | K200: 3558.751568 | L200: 4918.0738 | M200: 2336.893669 | N200: 3024.938832 | P200: Hija 94 años | Q200: 2934.210077 | R200: 3798.121465 | S200: 5248.874869 | T200: 2494.078566 | U200: 3228.403245
... 107 more rows
